fUSD/lending_fUSD_20240813
["ID","MTS","AMOUNT","RATE_DAILY","PERIOD"]
[334728458,1723513847271,-215.15,0.0001235,2]
[334728460,1723513847281,-215.15,0.00012387,2]
[334728462,1723513847291,-215.15,0.00012387,2]
[334728464,1723513847300,-215.15,0.00012387,2]
[334728466,1723513847311,-215.15,0.00012387,2]
[334728468,1723513847320,-2502.77061017,0.00012391,2]
[334728485,1723513847330,-215.15,0.000124,2]
[334728490,1723513847518,-9950.82118127,0.0001254,2]
[334729169,1723514181483,500.0,0.00027,120]
[334729171,1723514248273,216.67,9.02e-05,2]
[334729172,1723514292125,227.78421077,9.02e-05,2]
[334729173,1723514308125,227.78421077,9.02e-05,2]
[334729174,1723514438527,227.78421077,9.02e-05,2]
[334729175,1723514453188,227.78421077,9.02e-05,2]
[334729176,1723514534184,350.26315426,0.00027,120]
[334729179,1723514727032,205.83,8.754e-05,2]
[334729181,1723514774323,227.78421077,8.754e-05,2]
[334729185,1723514864442,227.78421077,8.754e-05,2]
[334729195,1723514963382,227.78421077,8.754e-05,2]
[334729234,1723515031579,-583.66372092,9.9e-05,2]
[334729235,1723515031588,-550.0,0.0001,2]
[334729236,1723515031597,-417.66514676,0.00010448,2]
[334729239,1723515031706,-264.05668947,0.00010448,2]
[334729240,1723515031718,-318.27816377,0.00010448,2]
[334729241,1723515031730,-600.64,0.00010464,2]
[334729242,1723515031740,-780.88,0.00010506,2]
[334729243,1723515031751,-309.32304521,0.00010611,2]
[334729244,1723515031760,-950.59631739,0.00010611,2]
[334729245,1723515031769,-227.78421077,0.00010611,2]
[334729246,1723515031779,-300.0,0.0001064,2]
[334729247,1723515031789,-2348.59,0.00010641,2]
[334729248,1723515031798,-670.03,0.00010827,2]
[334729249,1723515031808,-197.33,0.00010837,2]
[334729250,1723515031817,-250.0,0.00010857,2]
[334729251,1723515031829,-171.19,0.00010867,2]
[334729252,1723515031839,-376.04,0.0001088,2]
[334729253,1723515031849,-2975.31446823,0.00010911,2]
[334729254,1723515031860,-3474.12324214,0.00010911,2]
[334729255,1723515031871,-1287.63294274,0.00010911,2]
[334729256,1723515031883,-136.47210999,0.00010911,2]
[334729257,1723515031893,-1056.73733911,0.00010917,2]
[334729258,1723515031905,-1779.68622586,0.00010917,2]
[334729259,1723515031936,-2880.48069793,0.00010917,2]
[334729260,1723515031947,-2349.5357371,0.00010917,2]
[334729261,1723515031956,-4080.72168019,0.00010921,2]
[334729284,1723515039841,-273.44,0.00010395,2]
[334729285,1723515039852,-3284.640274,0.00010395,2]
[334729286,1723515039862,-19819.27831981,0.00010921,2]
[334729287,1723515039872,-150.0,0.00010959,2]
[334729288,1723515039882,-250.0,0.00010959,2]
[334729289,1723515039893,-250.0,0.00011,2]
[334729290,1723515039903,-150.0,0.00011,2]
[334729291,1723515039913,-205.83,0.00011018,2]
[334729292,1723515039924,-3875.75601636,0.00011105,2]
[334729293,1723515039934,-10534.95166335,0.00011105,2]
[334729294,1723515039944,-2146.14756584,0.00011105,2]
[334729295,1723515039953,-2502.77061017,0.00011105,2]
[334729296,1723515039962,-2836.32398591,0.00011105,2]
[334729297,1723515039972,-3032.61487239,0.00011105,2]
[334729298,1723515039981,-3404.69572783,0.00011105,2]
[334729299,1723515039990,-2115.67897635,0.00011105,2]
[334729300,1723515040000,-400.0,0.00011105,2]
[334729301,1723515040013,-2342.04182094,0.00011105,2]
[334729302,1723515040022,-365.83889017,0.00011105,2]
[334729303,1723515040031,-2841.34337643,0.00011105,2]
[334729304,1723515040041,-9272.07071128,0.00011105,2]
[334729305,1723515040051,-5404.28015788,0.00011105,2]
[334729306,1723515040060,-3937.52075365,0.00011105,2]
[334729307,1723515040070,-264.51117711,0.00011105,2]
[334729308,1723515040081,-3082.46394052,0.00011105,2]
[334729309,1723515040093,-720.05251311,0.00011105,2]
[334729310,1723515040103,-1139.21329126,0.00011105,2]
[334729311,1723515040112,-2386.36839346,0.00011105,2]
[334729312,1723515040122,-892.82081385,0.00011105,2]
[334729313,1723515040131,-1298.34223089,0.00011105,2]
[334729314,1723515040140,-1074.78314637,0.00011105,2]
[334729315,1723515040149,-1275.75177255,0.00011105,2]
[334729316,1723515040158,-1634.56112514,0.00011105,2]
[334729317,1723515040168,-298.67239716,0.00011105,2]
[334729318,1723515040177,-499.99,0.00011114,2]
[334729319,1723515040185,-213.3434,0.00011148,2]
[334729320,1723515040195,-3121.28195655,0.00011186,2]
[334729321,1723515040204,-1406.25774236,0.00011186,2]
[334729322,1723515040214,-151.0,0.00011186,2]
[334729323,1723515040223,-511.18953,0.00011186,2]
[334729324,1723515040232,-511.18953,0.00011186,2]
[334729325,1723515040242,-921.63590723,0.00011322,2]
[334729326,1723515040253,-1500.0,0.00011324,2]
[334729327,1723515040262,-1500.0,0.00011324,2]
[334729328,1723515040272,-9904.51052204,0.00011324,2]
[334729330,1723515040282,-263.58,0.00011362,2]
[334729332,1723515040292,-174.45,0.00011473,2]
[334729334,1723515040301,-420.0,0.00011696,2]
[334729336,1723515040311,-1000.0,0.00011754,2]
[334729338,1723515040321,-687.08646626,0.0001185,2]
[334729340,1723515040331,-723.4767735,0.0001185,2]
[334729342,1723515040341,-211.75773776,0.00011959,2]
[334729344,1723515040351,-255.21992957,0.00011959,2]
[334729346,1723515040360,-600.0,0.00012,2]
[334729348,1723515040370,-388.08478933,0.00012058,2]
[334729350,1723515040380,-411.60372182,0.00012182,2]
[334729352,1723515040390,-18402.80176182,0.00012239,2]
[334729353,1723515040400,-151.0,0.00012239,2]
[334729355,1723515040409,-511.18953,0.00012239,2]
[334729357,1723515040419,-511.18953,0.00012239,2]
[334729359,1723515040428,-151.0,0.00012239,2]
[334729361,1723515040438,-152.255248,0.00012239,2]
[334729363,1723515040448,-152.255248,0.00012239,2]
[334729365,1723515040457,-155.146947,0.00012239,2]
[334729367,1723515040467,-151.0,0.00012239,2]
[334729369,1723515040477,-151.0,0.00012239,2]
[334729371,1723515040486,-151.0,0.00012296,2]
[334729373,1723515040496,-3307.389,0.00012296,2]
[334729375,1723515040506,-151.212,0.00012296,2]
[334729377,1723515040515,-1161.511,0.00012296,2]
[334729379,1723515040525,-2369.582,0.00012296,2]
[334729381,1723515040535,-1762.334,0.00012296,2]
[334729383,1723515040544,-17310.858,0.00012296,2]
[334729385,1723515040554,-1555.6762,0.00012339,2]
[334729387,1723515040563,-600.79792946,0.0001236,2]
[334729389,1723515040573,-289.25862066,0.00012391,2]
[334729391,1723515040582,-649.92257342,0.00012391,2]
[334729393,1723515040592,-151.0,0.00012397,2]
[334729395,1723515040601,-205.26358525,0.00012397,2]
[334729397,1723515040611,-493.63885733,0.00012397,2]
[334729399,1723515040620,-151.0,0.0001241,2]
[334729401,1723515040630,-152.255248,0.0001241,2]
[334729403,1723515040641,-152.255248,0.0001241,2]
[334729405,1723515040651,-2819.34072903,0.00012428,2]
[334729407,1723515040661,-151.0,0.00012428,2]
[334729409,1723515040671,-511.18953,0.00012428,2]
[334729411,1723515040680,-511.18953,0.00012428,2]
[334729413,1723515040690,-151.0,0.00012438,2]
[334729415,1723515040699,-151.0,0.00012438,2]
[334729417,1723515040709,-188.403531,0.00012438,2]
[334729419,1723515040719,-188.403531,0.00012438,2]
[334729421,1723515040728,-264.204983,0.00012438,2]
[334729423,1723515040738,-151.0,0.00012438,2]
[334729424,1723515040747,-151.0,0.00012439,2]
[334729425,1723515040758,-162.06488972,0.00012439,2]
[334729426,1723515040767,-151.0,0.00012439,2]
[334729427,1723515040777,-156.103128,0.00012439,2]
[334729428,1723515040786,-511.18953,0.00012439,2]
[334729429,1723515040796,-511.18953,0.00012439,2]
[334729430,1723515040805,-151.0,0.00012439,2]
[334729431,1723515040815,-152.255248,0.00012439,2]
[334729432,1723515040824,-152.255248,0.00012439,2]
[334729433,1723515040833,-152.778607,0.00012439,2]
[334729434,1723515040842,-151.0,0.00012439,2]
[334729435,1723515040851,-1000.0,0.00012439,2]
[334729436,1723515040860,-1528.5043,0.00012439,2]
[334729437,1723515040870,-10361.2519,0.00012439,2]
[334729438,1723515040879,-7706.2428,0.00012439,2]
[334729439,1723515040888,-362.2099,0.00012439,2]
[334729440,1723515040898,-1111.124,0.00012439,2]
[334729441,1723515040907,-773.543,0.00012439,2]
[334729442,1723515040917,-220.2011,0.00012439,2]
[334729443,1723515040926,-444.5299,0.00012439,2]
[334729444,1723515040935,-3106.9302,0.00012439,2]
[334729446,1723515040944,-151.0,0.0001246,2]
[334729447,1723515040954,-188.403531,0.0001246,2]
[334729449,1723515040963,-188.403531,0.0001246,2]
[334729451,1723515040973,-152.41,0.00012529,2]
[334729453,1723515040982,-151.0,0.0001253,2]
[334729455,1723515040991,-751.49965305,0.00012538,3]
[334729457,1723515041003,-574.33339787,0.00012539,2]
[334729459,1723515041016,-295.638714,0.00012539,2]
[334729461,1723515041025,-2955.90221665,0.00012539,2]
[334729463,1723515041034,-151.0,0.00012539,2]
[334729465,1723515041043,-151.0,0.00012539,2]
[334729467,1723515041053,-151.0,0.00012539,2]
[334729469,1723515041063,-188.403531,0.00012539,2]
[334729471,1723515041072,-188.403531,0.00012539,2]
[334729473,1723515041081,-151.0,0.00012539,2]
[334729475,1723515041093,-151.0,0.00012539,2]
[334729477,1723515041102,-151.0,0.00012539,2]
[334729479,1723515041111,-511.18953,0.00012539,2]
[334729481,1723515041121,-511.18953,0.00012539,2]
[334729483,1723515041132,-151.0,0.00012539,2]
[334729485,1723515041143,-152.255248,0.00012539,2]
[334729487,1723515041153,-152.255248,0.00012539,2]
[334729489,1723515041163,-151.0,0.00012539,2]
[334729492,1723515041173,-24409.25663992,0.0001254,2]
[334729496,1723515041205,-19575.68017879,0.0001254,2]
[334729675,1723515043801,-151.0,0.00012239,2]
[334729676,1723515043810,-1344.74781046,0.0001254,2]
[334729677,1723515043826,-1294.36888767,0.0001254,2]
[334729694,1723515289488,215.47,9.537e-05,2]
[334729762,1723515743090,204.69,8.769e-05,2]
[334729913,1723516228665,194.45,8.7e-05,2]
[334729955,1723516232179,-550.0,0.0001,2]
[334729959,1723516232193,-91.02,0.00010575,2]
[334729969,1723516232320,-182.42,0.00010575,2]
[334729970,1723516232335,-117.58,0.00010628,2]
[334729971,1723516232349,-182.42,0.00010628,2]
[334729972,1723516232360,-365.83889017,0.00010629,2]
[334729973,1723516232379,-368.52992414,0.00010629,2]
[334729974,1723516232393,-80.2203469,0.00010629,2]
[334729975,1723516232409,-347.64766104,0.00010629,2]
[334729976,1723516232427,-1683.76418748,0.00010629,2]
[334729977,1723516232446,-155.14009473,0.00010629,2]
[334729978,1723516232459,-865.82523715,0.00010629,2]
[334729979,1723516232472,-279.39664822,0.00010629,2]
[334729980,1723516232484,-250.0,0.00010654,2]
[334729981,1723516232497,-559.43,0.00010674,2]
[334729982,1723516232510,-517.83503844,0.00010679,2]
[334729983,1723516232526,-2190.97496156,0.00010679,2]
[334729984,1723516232539,-600.0,0.00010702,2]
[334729985,1723516232552,-210.86,0.00010729,2]
[334729986,1723516232565,-1411.89960104,0.00010838,2]
[334729987,1723516232580,-4950.35413857,0.00010838,2]
[334729988,1723516232596,-8341.70608313,0.00010838,2]
[334729989,1723516232612,-1050.00000188,0.00010838,2]
[334729990,1723516232628,-2055.13960745,0.00010838,2]
[334729999,1723516237964,-6090.90056793,0.00010838,2]
[334730000,1723516237975,-173.48,0.00010842,2]
[334730001,1723516237984,-5034.84,0.00010899,2]
[334730002,1723516237994,-250.0,0.00010959,2]
[334730003,1723516238009,-194.45,0.00010964,2]
[334730004,1723516238018,-7910.13,0.00011,2]
[334730005,1723516238027,-250.0,0.00011,2]
[334730006,1723516238036,-214.39,0.00011,2]
[334730007,1723516238046,-400.0,0.00011041,2]
[334730008,1723516238055,-712.54,0.00011078,2]
[334730010,1723516238065,-2973.01895516,0.00011086,2]
[334730011,1723516238076,-811.87654484,0.00011086,2]
[334730012,1723516238086,-325.72924417,0.00011095,2]
[334730013,1723516238096,-600.79792946,0.00011105,2]
[334730014,1723516238106,-383.25789998,0.00011105,2]
[334730015,1723516238116,-628.70277812,0.00011105,2]
[334730016,1723516238127,-164.41632778,0.00011105,2]
[334730017,1723516238137,-595.1329658,0.00011105,2]
[334730018,1723516238148,-265.35834008,0.00011105,2]
[334730019,1723516238158,-454.61712704,0.00011105,2]
[334730020,1723516238169,-155.0,0.00011105,2]
[334730021,1723516238179,-297.51588055,0.00011105,2]
[334730022,1723516238188,-359.44687371,0.00011105,2]
[334730023,1723516238198,-313.75141166,0.00011105,2]
[334730024,1723516238208,-303.98208233,0.00011105,2]
[334730025,1723516238218,-243.27449517,0.00011105,2]
[334730026,1723516238229,-476.98360421,0.00011105,2]
[334730027,1723516238238,-155.0,0.00011105,2]
[334730028,1723516238248,-218.92791442,0.00011105,2]
[334730029,1723516238258,-432.5166998,0.00011105,2]
[334730030,1723516238268,-155.0,0.00011105,2]
[334730031,1723516238277,-265.45661365,0.00011105,2]
[334730032,1723516238287,-380.35876131,0.00011105,2]
[334730033,1723516238298,-330.22671498,0.00011105,2]
[334730034,1723516238308,-1739.7277323,0.00011105,2]
[334730035,1723516238319,-2.64768821,0.00011105,2]
[334730039,1723516238572,-164.92313377,0.00011105,2]
[334730040,1723516238582,-520.17986791,0.00011105,2]
[334730041,1723516238591,-155.0,0.00011105,2]
[334730042,1723516238601,-653.7077551,0.00011105,2]
[334730043,1723516238611,-155.0,0.00011105,2]
[334730044,1723516238620,-159.62357463,0.00011105,2]
[334730045,1723516238629,-155.45612317,0.00011105,2]
[334730046,1723516238638,-211.07994478,0.00011105,2]
[334730047,1723516238648,-9899.13277806,0.00011105,2]
[334730048,1723516238656,-962.52865844,0.00011105,2]
[334730049,1723516238666,-205.95660742,0.00011105,2]
[334730050,1723516238676,-197.1552014,0.00011105,2]
[334730051,1723516238686,-5404.28015788,0.00011105,2]
[334730052,1723516238695,-9272.07071128,0.00011105,2]
[334730053,1723516238705,-528.96350263,0.00011105,2]
[334730054,1723516238715,-236.36319912,0.00011105,2]
[334730055,1723516238725,-155.0,0.00011105,2]
[334730056,1723516238735,-202.92272316,0.00011161,2]
[334730057,1723516238745,-203.42899612,0.00011161,2]
[334730058,1723516238755,-357.4813523,0.00011186,2]
[334730059,1723516238764,-3937.52075365,0.00011186,2]
[334730060,1723516238773,-155.0,0.00011206,2]
[334730061,1723516238783,-165.52184477,0.00011206,2]
[334730062,1723516238793,-155.0,0.00011206,2]
[334730063,1723516238803,-3875.75601636,0.00011206,2]
[334730064,1723516238812,-213.3434,0.00011222,2]
[334730065,1723516238822,-2836.32398591,0.00011321,2]
[334730066,1723516238832,-270.60181535,0.00011322,2]
[334730067,1723516238842,-270.60181535,0.00011322,2]
[334730068,1723516238852,-364.2209304,0.00011324,2]
[334730069,1723516238862,-3082.46394052,0.00011384,2]
[334730070,1723516238871,-3121.28195655,0.00011384,2]
[334730071,1723516238881,-150.82,0.0001158,2]
[334730072,1723516238891,-499.99,0.0001158,2]
[334730073,1723516238900,-420.0,0.00011683,2]
[334730074,1723516238910,-912.75,0.00011731,2]
[334730075,1723516238920,-6993.0,0.0001185,2]
[334730076,1723516238929,-7978.15082756,0.00011859,2]
[334730077,1723516238979,-1554.46417244,0.00011859,2]
[334730078,1723516238988,-206.78622014,0.00011896,2]
[334730079,1723516238998,-2386.36839346,0.00011896,2]
[334730080,1723516239007,-600.0,0.00012,2]
[334730081,1723516239017,-600.0,0.0001204,2]
[334730082,1723516239026,-210.86,0.0001207,2]
[334730083,1723516239036,-420.36124782,0.00012094,2]
[334730084,1723516239045,-16930.46873363,0.00012139,2]
[334730085,1723516239055,-388.08478933,0.00012155,2]
[334730086,1723516239065,-1000.0,0.00012196,2]
[334730087,1723516239074,-151.461187,0.00012239,2]
[334730088,1723516239085,-255.594765,0.00012239,2]
[334730089,1723516239094,-151.0,0.00012239,2]
[334730090,1723516239104,-3014.9869,0.00012239,2]
[334730091,1723516239113,-162.06488972,0.0001226,2]
[334730092,1723516239123,-365.025,0.000123,2]
[334730093,1723516239132,-152.032373,0.00012339,2]
[334730094,1723516239142,-151.446374,0.00012339,2]
[334730095,1723516239152,-151.0,0.00012339,2]
[334730096,1723516239161,-151.0,0.00012339,2]
[334730097,1723516239171,-151.0,0.00012339,2]
[334730098,1723516239180,-151.0,0.00012339,2]
[334730099,1723516239190,-151.0,0.00012339,2]
[334730100,1723516239200,-255.594765,0.00012339,2]
[334730101,1723516239210,-189.401501,0.00012339,2]
[334730102,1723516239219,-351.9441376,0.00012339,2]
[334730103,1723516239228,-151.0,0.00012339,2]
[334730104,1723516239238,-278.284755,0.00012339,2]
[334730105,1723516239247,-151.0,0.00012339,2]
[334730106,1723516239257,-206.182976,0.00012339,2]
[334730107,1723516239267,-151.0,0.00012339,2]
[334730108,1723516239277,-151.0,0.00012339,2]
[334730109,1723516239287,-148989.8163,0.00012339,2]
[334730110,1723516239297,-419.14897991,0.0001236,2]
[334730111,1723516239306,-5000.0,0.0001236,2]
[334730112,1723516239316,-1298.34223089,0.00012391,2]
[334730113,1723516239326,-1074.78314637,0.00012397,2]
[334730114,1723516239336,-705.94779111,0.00012397,2]
[334730115,1723516239345,-1500.0,0.00012397,2]
[334730116,1723516239354,-921.63590723,0.00012397,2]
[334730117,1723516239364,-298.67239716,0.00012397,2]
[334730118,1723516239376,-400.0,0.00012421,2]
[334730119,1723516239386,-400.66578761,0.00012428,2]
[334730120,1723516239397,-151.0,0.00012439,2]
[334730121,1723516239407,-151.0,0.00012439,2]
[334730122,1723516239417,-151.0,0.00012439,2]
[334730123,1723516239427,-151.0,0.00012439,2]
[334730124,1723516239438,-243.929895,0.00012439,2]
[334730125,1723516239449,-151.0,0.00012439,2]
[334730126,1723516239459,-194.939704,0.00012439,2]
[334730127,1723516239469,-151.0,0.00012439,2]
[334730128,1723516239478,-151.0,0.00012439,2]
[334730129,1723516239488,-151.0,0.00012439,2]
[334730130,1723516239498,-151.0,0.00012439,2]
[334730131,1723516239507,-151.0,0.00012439,2]
[334730132,1723516239517,-151.0,0.00012439,2]
[334730133,1723516239526,-151.0,0.00012439,2]
[334730135,1723516239536,-288.655137,0.00012439,2]
[334730137,1723516239546,-151.0,0.00012439,2]
[334730139,1723516239555,-151.0,0.00012439,2]
[334730141,1723516239565,-166.062983,0.00012439,2]
[334730143,1723516239574,-253.318822,0.00012439,2]
[334730145,1723516239584,-255.594765,0.00012439,2]
[334730147,1723516239594,-255.594765,0.00012439,2]
[334730149,1723516239603,-153.05998,0.00012439,2]
[334730150,1723516239612,-201.57725028,0.00012439,2]
[334730152,1723516239622,-151.0,0.00012439,2]
[334730154,1723516239631,-151.0,0.00012439,2]
[334730156,1723516239641,-152.258212,0.00012439,2]
[334730158,1723516239651,-151.0,0.00012439,2]
[334730160,1723516239660,-151.0,0.00012439,2]
[334730162,1723516239670,-7384.6684,0.00012439,2]
[334730164,1723516239679,-39160.4123,0.00012439,2]
[334730166,1723516239689,-100000.0,0.00012439,2]
[334730168,1723516239699,-3932.20520426,0.00012439,2]
[334730228,1723516243258,-155.0,0.00011186,2]
[334730230,1723516243267,-502.43375398,0.00011959,2]
[334730233,1723516243280,-217.61875913,0.00011959,2]
[334730235,1723516243289,-151.0,0.00012339,2]
[334730237,1723516243298,-151.0,0.00012439,2]
[334730239,1723516243308,-80.05098807,0.00012439,2]
[334730260,1723516243513,-206.78622014,0.0001185,2]
[334730261,1723516243524,-70.94901193,0.00012439,2]
[334730263,1723516243534,-537.53636074,0.00012439,2]
[334730340,1723516244283,-4895.32181188,0.00012439,2]
[334730390,1723516709864,197.95,9.199e-05,2]
[334730393,1723517187469,188.05,8.641e-05,2]
[334730438,1723517432096,-1257.62857871,0.00010474,2]
[334730439,1723517432106,-300.0,0.00010538,2]
[334730440,1723517432115,-6646.78616381,0.00010539,2]
[334730441,1723517432128,-452.42966121,0.00010539,2]
[334730442,1723517432139,-2631.1,0.00010539,2]
[334730452,1723517432465,-439.35,0.00010539,2]
[334730453,1723517432476,-6609.99999997,0.00010539,2]
[334730454,1723517432487,-7120.33417501,0.00010539,2]
[334730455,1723517432496,-918.65,0.00010551,2]
[334730456,1723517432506,-150.82,0.00010562,2]
[334730457,1723517432515,-16914.90951799,0.00010562,2]
[334730458,1723517432524,-250.0,0.00010566,2]
[334730459,1723517432533,-173.48,0.00010567,2]
[334730460,1723517432542,-534.42,0.00010624,2]
[334730461,1723517432551,-188.05,0.00010905,2]
[334730462,1723517432560,-250.0,0.00010959,2]
[334730463,1723517432569,-150.0,0.00010986,2]
[334730464,1723517432578,-499.99,0.00010986,2]
[334730465,1723517432587,-599.35,0.00010986,2]
[334730466,1723517432596,-735.97,0.00011014,2]
[334730467,1723517432606,-735.97,0.00011017,2]
[334730468,1723517432615,-735.97,0.0001102,2]
[334730469,1723517432624,-735.97,0.00011023,2]
[334730470,1723517432633,-735.97,0.00011026,2]
[334730471,1723517432642,-735.97,0.00011029,2]
[334730472,1723517432652,-735.97,0.00011032,2]
[334730473,1723517432662,-735.97,0.00011035,2]
[334730474,1723517432671,-735.97,0.00011038,2]
[334730475,1723517432681,-735.97,0.0001104,2]
[334730476,1723517432691,-1000.0,0.00011042,2]
[334730477,1723517432700,-735.97,0.00011043,2]
[334730478,1723517432710,-735.97,0.00011046,2]
[334730479,1723517432719,-150.0,0.00011049,2]
[334730480,1723517432729,-735.97,0.00011049,2]
[334730481,1723517432738,-735.97,0.00011052,2]
[334730482,1723517432748,-735.97,0.00011055,2]
[334730483,1723517432762,-735.97,0.00011058,2]
[334730484,1723517432771,-735.97,0.00011061,2]
[334730485,1723517432780,-735.97,0.00011064,2]
[334730486,1723517432789,-735.97,0.00011067,2]
[334730487,1723517432801,-735.97,0.00011069,2]
[334730488,1723517432810,-202.92272316,0.00011105,2]
[334730489,1723517432819,-357.4813523,0.00011105,2]
[334730490,1723517432829,-3937.52075365,0.00011105,2]
[334730491,1723517432839,-3082.46394052,0.00011105,2]
[334730492,1723517432848,-1634.56112514,0.00011105,2]
[334730493,1723517432857,-687.08646626,0.00011105,2]
[334730494,1723517432866,-1074.78314637,0.00011105,2]
[334730495,1723517432875,-1139.21329126,0.00011105,2]
[334730496,1723517432884,-255.21992957,0.00011105,2]
[334730497,1723517432893,-309.32304521,0.00011105,2]
[334730498,1723517432903,-485.22914892,0.00011105,2]
[334730499,1723517432913,-155.14164527,0.00011105,2]
[334730500,1723517432922,-211.75773776,0.00011105,2]
[334730501,1723517432933,-649.92257342,0.00011105,2]
[334730502,1723517432943,-15484.26437761,0.00011105,2]
[334730503,1723517432952,-493.63885733,0.00011105,2]
[334730504,1723517432961,-347.72579691,0.00011105,2]
[334730505,1723517432971,-25323.97867065,0.00011186,2]
[334730506,1723517432980,-170.92,0.00011214,2]
[334730507,1723517432989,-182.99,0.00011262,2]
[334730508,1723517432999,-420.0,0.00011592,2]
[334730509,1723517433008,-150.16,0.00011778,2]
[334730510,1723517433018,-150.58,0.00011778,2]
[334730511,1723517433027,-10534.95166335,0.00011959,2]
[334730512,1723517433037,-10107.97,0.00012087,2]
[334730513,1723517433046,-11813.95646392,0.00012095,2]
[334730514,1723517433056,-255.0,0.00012099,2]
[334730515,1723517433066,-388.08478933,0.00012159,2]
[334730516,1723517433075,-488.1162,0.00012239,2]
[334730517,1723517433085,-420.36124782,0.0001229,2]
[334730518,1723517433095,-3000.0,0.0001231,2]
[334730519,1723517433104,-3404.69572783,0.00012391,2]
[334730520,1723517433114,-10000.0,0.00012404,2]
[334730521,1723517433123,-1000.0,0.00012422,2]
[334730522,1723517433133,-612.7058,0.00012439,2]
[334730523,1723517433142,-328.48119514,0.0001244,2]
[334730524,1723517433151,-162.06488972,0.0001244,2]
[334730525,1723517433161,-500.0,0.00012477,2]
[334730526,1723517433171,-500.0,0.00012477,2]
[334730527,1723517433185,-500.0,0.00012477,2]
[334730528,1723517433195,-500.0,0.00012477,2]
[334730529,1723517433204,-500.0,0.00012477,2]
[334730530,1723517433214,-380.8113,0.00012477,2]
[334730531,1723517433223,-500.0,0.00012477,2]
[334730532,1723517433233,-500.0,0.00012477,2]
[334730533,1723517433242,-500.0,0.00012477,2]
[334730534,1723517433251,-500.0,0.00012477,2]
[334730535,1723517433261,-500.0,0.00012477,2]
[334730536,1723517433270,-500.0,0.00012477,2]
[334730537,1723517433280,-500.0,0.00012477,2]
[334730538,1723517433289,-500.0,0.00012477,2]
[334730539,1723517433298,-502.6648,0.00012477,2]
[334730540,1723517433308,-1169.51786373,0.00012538,3]
[334730541,1723517433317,-1091.29460705,0.00012539,2]
[334730542,1723517433326,-254.21301,0.00012539,2]
[334730543,1723517433335,-224157.06821402,0.0001254,2]
[334730552,1723517438814,-344.11972073,0.0001254,2]
[334731245,1723517446289,-3199.83534607,0.0001236,2]
[334732153,1723518150952,164.0,2.5e-07,10]
[334732154,1723518251596,169.24,9.477e-05,2]
[334732183,1723518638298,-550.0,0.0001,2]
[334732185,1723518638308,-250.0,0.00011,2]
[334732187,1723518638318,-3404.69572783,0.00011105,2]
[334732188,1723518638327,-3032.61487239,0.00011105,2]
[334732189,1723518638338,-2502.77061017,0.00011105,2]
[334732190,1723518638348,-2146.14756584,0.00011105,2]
[334732191,1723518638358,-2841.34337643,0.00011105,2]
[334732192,1723518638368,-155.0,0.00011105,2]
[334732193,1723518638377,-2342.04182094,0.00011105,2]
[334732194,1723518638387,-420.08467301,0.00011322,2]
[334732195,1723518638397,-250.0,0.00011367,2]
[334732196,1723518638407,-267.21,0.00011415,2]
[334732197,1723518638416,-12463.24662804,0.00011427,2]
[334732198,1723518638428,-3631.32337196,0.00011427,2]
[334732199,1723518638437,-182.99,0.00011448,2]
[334732200,1723518638446,-222.20662813,0.00011487,2]
[334732201,1723518638633,-308.95841691,0.00011487,2]
[334732202,1723518638643,-438.7702881,0.00011487,2]
[334732203,1723518638652,-1275.75177255,0.00011525,2]
[334732204,1723518638662,-1275.75177255,0.00011525,2]
[334732205,1723518638671,-334.48356226,0.00011685,2]
[334732937,1723518646437,-316.220239,0.00011685,2]
[334732940,1723518646449,-349.29619874,0.00011685,2]
[334732942,1723518646458,-169.24,0.00011741,2]